[Event "Late-Titled-Tuesday-Blitz-October-10-2023"]
[Site "Chess.com"]
[Date "2023.10.10"]
[Round "3"]
[White "iturrizaga"]
[Black "TheBigBoss04"]
[Result "1-0"]
[WhiteElo "2998"]
[BlackElo "2738"]
[TimeControl "180+1"]
[EndTime "14:27:54 PDT"]
[Termination "iturrizaga won on time"]

1. c4 {[%clk 0:03:00.9]} 1... e6 {[%clk 0:02:58.1]} 2. Nf3 {[%clk 0:03:00.5]}
2... d5 {[%clk 0:02:57.7]} 3. e3 {[%clk 0:03:01.4]} 3... Nf6 {[%clk 0:02:56.6]}
4. Nc3 {[%clk 0:03:02]} 4... Nbd7 {[%clk 0:02:51.6]} 5. b3 {[%clk 0:03:01.9]}
5... g6 {[%clk 0:02:35.3]} 6. Bb2 {[%clk 0:03:01.9]} 6... Bg7 {[%clk 0:02:33.3]}
7. Qc2 {[%clk 0:03:02.1]} 7... O-O {[%clk 0:02:31.6]} 8. g3 {[%clk 0:03:00.2]}
8... b6 {[%clk 0:02:23.9]} 9. Bg2 {[%clk 0:03:00.1]} 9... Ba6 {[%clk 0:02:19.7]}
10. d3 {[%clk 0:02:55]} 10... Rc8 {[%clk 0:02:18.7]} 11. O-O {[%clk 0:02:53.2]}
11... c5 {[%clk 0:02:17.7]} 12. Rad1 {[%clk 0:02:50.9]} 12... Qe7 {[%clk
0:02:17.7]} 13. Rfe1 {[%clk 0:02:47]} 13... Rfd8 {[%clk 0:02:17.2]} 14. Qb1
{[%clk 0:02:35.6]} 14... Bb7 {[%clk 0:02:10.7]} 15. Qa1 {[%clk 0:02:30.3]} 15...
Qf8 {[%clk 0:02:07.2]} 16. h3 {[%clk 0:02:16.8]} 16... a6 {[%clk 0:02:02.9]} 17.
g4 {[%clk 0:02:08.9]} 17... h6 {[%clk 0:02:01.3]} 18. Ne2 {[%clk 0:02:05.1]}
18... Ne8 {[%clk 0:01:57]} 19. Ng3 {[%clk 0:02:04.7]} 19... Bxb2 {[%clk
0:01:55.1]} 20. Qxb2 {[%clk 0:02:05.6]} 20... Qg7 {[%clk 0:01:55.2]} 21. Qc1
{[%clk 0:02:06]} 21... Nd6 {[%clk 0:01:52.3]} 22. e4 {[%clk 0:01:57.2]} 22...
dxc4 {[%clk 0:01:45.7]} 23. dxc4 {[%clk 0:01:53.8]} 23... Ne5 {[%clk 0:01:25.2]}
24. Nxe5 {[%clk 0:01:51.1]} 24... Qxe5 {[%clk 0:01:26.1]} 25. Qxh6 {[%clk
0:01:51.5]} 25... Ne8 {[%clk 0:01:20]} 26. Qe3 {[%clk 0:01:24.7]} 26... b5
{[%clk 0:01:12.5]} 27. Bf1 {[%clk 0:01:15]} 27... bxc4 {[%clk 0:01:08.8]} 28.
Bxc4 {[%clk 0:01:14.5]} 28... Rd4 {[%clk 0:01:08.8]} 29. f4 {[%clk 0:00:51]}
29... Qd6 {[%clk 0:01:06]} 30. Rxd4 {[%clk 0:00:51.3]} 30... cxd4 {[%clk
0:01:03.4]} 31. Qd2 {[%clk 0:00:52]} 31... d3 {[%clk 0:00:50.2]} 32. Qe3 {[%clk
0:00:43.5]} 32... Rd8 {[%clk 0:00:43.6]} 33. Rd1 {[%clk 0:00:42.6]} 33... d2
{[%clk 0:00:43.6]} 34. Nf1 {[%clk 0:00:41.7]} 34... Qd4 {[%clk 0:00:27]} 35. Kf2
{[%clk 0:00:33.7]} 35... Nf6 {[%clk 0:00:17.8]} 36. Ng3 {[%clk 0:00:14.8]} 36...
Qb2 {[%clk 0:00:15]} 37. g5 {[%clk 0:00:14.4]} 37... Qc2 {[%clk 0:00:11.8]} 38.
Ke2 {[%clk 0:00:14.8]} 38... Nxe4 {[%clk 0:00:11]} 39. Nxe4 {[%clk 0:00:12.5]}
39... Bxe4 {[%clk 0:00:11.9]} 40. Bxa6 {[%clk 0:00:03.7]} 40... Qxd1+ {[%clk
0:00:11.6]} 41. Kxd1 {[%clk 0:00:02.6]} 41... Bc2+ {[%clk 0:00:12.4]} 42. Kxc2
{[%clk 0:00:03.5]} 42... d1=Q+ {[%clk 0:00:09.9]} 43. Kc3 {[%clk 0:00:04.1]}
43... Qa1+ {[%clk 0:00:09.1]} 44. Kb4 {[%clk 0:00:03.5]} 44... Qxa2 {[%clk
0:00:08.5]} 45. Bc4 {[%clk 0:00:04]} 45... Rb8+ {[%clk 0:00:06.1]} 46. Kc3
{[%clk 0:00:04.3]} 46... Qa1+ {[%clk 0:00:06.3]} 47. Kc2 {[%clk 0:00:04.9]}
47... Rd8 {[%clk 0:00:04.5]} 48. Bd3 {[%clk 0:00:02]} 48... Qa2+ {[%clk
0:00:02.3]} 49. Kc3 {[%clk 0:00:02.6]} 49... Qa5+ {[%clk 0:00:02]} 50. Kc2
{[%clk 0:00:02.9]} 50... Qa2+ {[%clk 0:00:02.2]} 51. Kc3 {[%clk 0:00:03.2]}
51... Rc8+ {[%clk 0:00:02.8]} 52. Bc4 {[%clk 0:00:03.4]} 52... Ra8 {[%clk
0:00:02.9]} 53. Qd2 {[%clk 0:00:01.4]} 53... Qa1+ {[%clk 0:00:01.6]} 54. Kc2
{[%clk 0:00:01]} 1-0

[Event "Late-Titled-Tuesday-Blitz-October-10-2023"]
[Site "Chess.com"]
[Date "2023.10.10"]
[Round "3"]
[White "CarlosjPineror"]
[Black "realmadridfc123"]
[Result "0-1"]
[WhiteElo "2489"]
[BlackElo "2810"]
[TimeControl "180+1"]
[EndTime "14:27:54 PDT"]
[Termination "realmadridfc123 won on time"]

1. e4 {[%clk 0:03:00.9]} 1... e5 {[%clk 0:02:59.3]} 2. Nf3 {[%clk 0:03:00.8]}
2... Nc6 {[%clk 0:02:59.9]} 3. Bb5 {[%clk 0:03:00.3]} 3... a6 {[%clk 0:02:59.2]}
4. Ba4 {[%clk 0:03:00.3]} 4... Nf6 {[%clk 0:02:59.8]} 5. d3 {[%clk 0:02:59.8]}
5... b5 {[%clk 0:02:59.3]} 6. Bb3 {[%clk 0:02:59.7]} 6... Bc5 {[%clk 0:03:00]}
7. O-O {[%clk 0:02:58.9]} 7... d6 {[%clk 0:03:00.4]} 8. h3 {[%clk 0:02:59.1]}
8... h6 {[%clk 0:02:59.5]} 9. c3 {[%clk 0:02:59]} 9... O-O {[%clk 0:02:57.4]}
10. Re1 {[%clk 0:02:58.1]} 10... d5 {[%clk 0:02:46.9]} 11. Nbd2 {[%clk
0:02:25.3]} 11... d4 {[%clk 0:02:39.2]} 12. Nf1 {[%clk 0:02:03.5]} 12... Qd6
{[%clk 0:02:34.1]} 13. c4 {[%clk 0:01:56.6]} 13... Na5 {[%clk 0:02:26.8]} 14.
N1d2 {[%clk 0:01:41.4]} 14... Nxb3 {[%clk 0:02:14]} 15. axb3 {[%clk 0:01:39.7]}
15... Nh5 {[%clk 0:02:04.7]} 16. cxb5 {[%clk 0:01:37]} 16... Nf4 {[%clk
0:02:03.5]} 17. Nf1 {[%clk 0:01:35.4]} 17... Bb7 {[%clk 0:01:53.8]} 18. Bxf4
{[%clk 0:01:33.4]} 18... exf4 {[%clk 0:01:54.7]} 19. bxa6 {[%clk 0:01:31.5]}
19... Rxa6 {[%clk 0:01:32.1]} 20. Rxa6 {[%clk 0:01:21.3]} 20... Qxa6 {[%clk
0:01:27.7]} 21. Qc2 {[%clk 0:01:20.3]} 21... Bb6 {[%clk 0:01:24.6]} 22. N1d2
{[%clk 0:01:17.8]} 22... c5 {[%clk 0:01:18.8]} 23. Nc4 {[%clk 0:01:17.1]} 23...
Bc7 {[%clk 0:01:18.5]} 24. Qd2 {[%clk 0:01:11.8]} 24... Ra8 {[%clk 0:01:17.7]}
25. b4 {[%clk 0:01:10.5]} 25... f5 {[%clk 0:01:04.5]} 26. e5 {[%clk 0:01:02.8]}
26... Bxf3 {[%clk 0:01:02.9]} 27. gxf3 {[%clk 0:01:03.7]} 27... cxb4 {[%clk
0:00:54]} 28. Qxb4 {[%clk 0:01:02.9]} 28... Qc6 {[%clk 0:00:52.9]} 29. e6 {[%clk
0:00:20.1]} 29... Re8 {[%clk 0:00:44.6]} 30. e7 {[%clk 0:00:19.7]} 30... Qxf3
{[%clk 0:00:44.3]} 31. Qb5 {[%clk 0:00:19.9]} 31... Qh5 {[%clk 0:00:44.1]} 32.
Qd5+ {[%clk 0:00:19.6]} 32... Kh8 {[%clk 0:00:42.9]} 33. Ne5 {[%clk 0:00:18.8]}
33... Rxe7 {[%clk 0:00:40.7]} 34. Nf3 {[%clk 0:00:03.5]} 34... Rxe1+ {[%clk
0:00:31]} 35. Nxe1 {[%clk 0:00:04.4]} 35... Qe2 {[%clk 0:00:17]} 36. Nf3 {[%clk
0:00:03.4]} 36... Qxd3 {[%clk 0:00:17]} 37. Nxd4 {[%clk 0:00:03.8]} 37... f3
{[%clk 0:00:14.1]} 38. Qa8+ {[%clk 0:00:02.9]} 38... Kh7 {[%clk 0:00:13.6]} 39.
Nxf3 {[%clk 0:00:03.8]} 39... Qb1+ {[%clk 0:00:12.2]} 40. Kg2 {[%clk 0:00:04.1]}
40... Qxb2 {[%clk 0:00:12.8]} 41. Qd5 {[%clk 0:00:04.4]} 41... Qf6 {[%clk
0:00:12.9]} 42. Nd4 {[%clk 0:00:03.9]} 42... Kg6 {[%clk 0:00:06.9]} 43. Kf1
{[%clk 0:00:03.3]} 43... Bb6 {[%clk 0:00:07.5]} 44. Ne6 {[%clk 0:00:03.3]} 44...
Qh4 {[%clk 0:00:05.4]} 45. Qg2+ {[%clk 0:00:02.7]} 45... Kf6 {[%clk 0:00:05.4]}
46. Nxg7 {[%clk 0:00:03.2]} 46... Qc4+ {[%clk 0:00:05.2]} 47. Kg1 {[%clk
0:00:03.5]} 47... Qc1+ {[%clk 0:00:05.5]} 48. Kh2 {[%clk 0:00:03.8]} 48... Bc7+
{[%clk 0:00:05.7]} 0-1

[Event "Late-Titled-Tuesday-Blitz-October-10-2023"]
[Site "Chess.com"]
[Date "2023.10.10"]
[Round "3"]
[White "aNaartjieZA"]
[Black "micke12a"]
[Result "0-1"]
[WhiteElo "2545"]
[BlackElo "2350"]
[TimeControl "180+1"]
[EndTime "14:27:55 PDT"]
[Termination "micke12a won by checkmate"]

1. e4 {[%clk 0:03:00.9]} 1... c5 {[%clk 0:02:57.8]} 2. Nf3 {[%clk 0:03:01]} 2...
d6 {[%clk 0:02:57.4]} 3. g3 {[%clk 0:03:01.3]} 3... Nf6 {[%clk 0:02:57.1]} 4. d3
{[%clk 0:03:01.2]} 4... g6 {[%clk 0:02:56.8]} 5. Bg2 {[%clk 0:03:01.6]} 5... Bg7
{[%clk 0:02:57.5]} 6. O-O {[%clk 0:03:01.9]} 6... O-O {[%clk 0:02:58.4]} 7. Re1
{[%clk 0:03:02.4]} 7... Nc6 {[%clk 0:02:58.6]} 8. c3 {[%clk 0:03:02.8]} 8... Rb8
{[%clk 0:02:59.1]} 9. a4 {[%clk 0:03:02]} 9... a6 {[%clk 0:02:59]} 10. h3 {[%clk
0:03:02.5]} 10... b5 {[%clk 0:02:57.8]} 11. axb5 {[%clk 0:03:03]} 11... axb5
{[%clk 0:02:58.5]} 12. d4 {[%clk 0:03:03.4]} 12... cxd4 {[%clk 0:02:58.8]} 13.
cxd4 {[%clk 0:03:03.6]} 13... d5 {[%clk 0:02:59.5]} 14. e5 {[%clk 0:03:03.8]}
14... Ne4 {[%clk 0:02:59.4]} 15. Nc3 {[%clk 0:03:04.1]} 15... b4 {[%clk
0:02:56]} 16. Nxe4 {[%clk 0:03:03]} 16... dxe4 {[%clk 0:02:56.9]} 17. Rxe4
{[%clk 0:03:03]} 17... Bf5 {[%clk 0:02:57.6]} 18. Re1 {[%clk 0:03:02.9]} 18...
b3 {[%clk 0:02:56.5]} 19. Be3 {[%clk 0:02:51.5]} 19... Nb4 {[%clk 0:02:48.7]}
20. Ra7 {[%clk 0:02:50.1]} 20... Nc2 {[%clk 0:02:44.6]} 21. Re2 {[%clk
0:02:49.4]} 21... Ra8 {[%clk 0:02:41.6]} 22. Rxa8 {[%clk 0:02:39.1]} 22... Qxa8
{[%clk 0:02:40.8]} 23. Nd2 {[%clk 0:02:38]} 23... Qa2 {[%clk 0:02:38.5]} 24. g4
{[%clk 0:02:38]} 24... Bd3 {[%clk 0:02:36]} 25. Nxb3 {[%clk 0:02:33]} 25... Qxb3
{[%clk 0:02:32.6]} 26. Rd2 {[%clk 0:02:32.9]} 26... Rc8 {[%clk 0:01:57.7]} 27.
Rxd3 {[%clk 0:02:30.5]} 27... Qxb2 {[%clk 0:01:58.3]} 28. Qe2 {[%clk 0:02:02.9]}
28... Qb1+ {[%clk 0:01:53.9]} 29. Rd1 {[%clk 0:02:02.8]} 29... Qb3 {[%clk
0:01:54.5]} 30. Rc1 {[%clk 0:01:59.6]} 30... Rc3 {[%clk 0:01:46.1]} 31. Qd2
{[%clk 0:01:39.9]} 31... Rc4 {[%clk 0:01:14.6]} 32. Bf1 {[%clk 0:00:26]} 32...
Nxe3 {[%clk 0:00:54.6]} 33. fxe3 {[%clk 0:00:19.5]} 33... Rxc1 {[%clk
0:00:51.5]} 34. Qxc1 {[%clk 0:00:19.6]} 34... Bh6 {[%clk 0:00:52.2]} 35. Kf2
{[%clk 0:00:19.8]} 35... Bg5 {[%clk 0:00:48.7]} 36. Be2 {[%clk 0:00:19.8]} 36...
Kg7 {[%clk 0:00:48.6]} 37. Qd2 {[%clk 0:00:18.3]} 37... Qb1 {[%clk 0:00:46.9]}
38. Qd1 {[%clk 0:00:18.2]} 38... Qe4 {[%clk 0:00:46.9]} 39. Qd3 {[%clk 0:00:18]}
39... Qh1 {[%clk 0:00:46.4]} 40. Bf1 {[%clk 0:00:18.5]} 40... Bh4+ {[%clk
0:00:45.6]} 41. Ke2 {[%clk 0:00:18.2]} 41... Qh2+ {[%clk 0:00:45.1]} 42. Kd1
{[%clk 0:00:18.6]} 42... Qf2 {[%clk 0:00:44.9]} 43. Qe2 {[%clk 0:00:19.1]} 43...
Qg3 {[%clk 0:00:42.3]} 44. Kc2 {[%clk 0:00:19.4]} 44... Bg5 {[%clk 0:00:41.6]}
45. Kd3 {[%clk 0:00:19.7]} 45... f6 {[%clk 0:00:40.1]} 46. exf6+ {[%clk
0:00:19.7]} 46... exf6 {[%clk 0:00:40.6]} 47. Bg2 {[%clk 0:00:20]} 47... Qd6
{[%clk 0:00:39.4]} 48. Qb2 {[%clk 0:00:18.6]} 48... Qg3 {[%clk 0:00:37]} 49.
Qb7+ {[%clk 0:00:19.2]} 49... Kh6 {[%clk 0:00:37]} 50. Qf3 {[%clk 0:00:19.8]}
50... Qe1 {[%clk 0:00:36.2]} 51. d5 {[%clk 0:00:19.9]} 51... Qb1+ {[%clk
0:00:33.1]} 52. Kd4 {[%clk 0:00:20.1]} 52... Qb4+ {[%clk 0:00:32]} 53. Kd3
{[%clk 0:00:20.3]} 53... Qb3+ {[%clk 0:00:32.3]} 54. Kd2 {[%clk 0:00:20.4]}
54... Qb2+ {[%clk 0:00:28]} 55. Kd3 {[%clk 0:00:20.4]} 55... Qb3+ {[%clk
0:00:24.1]} 56. Ke2 {[%clk 0:00:20.7]} 56... Qc2+ {[%clk 0:00:23.5]} 57. Ke1
{[%clk 0:00:21.1]} 57... Qd3 {[%clk 0:00:20.3]} 58. Kf2 {[%clk 0:00:20.3]} 58...
Qd2+ {[%clk 0:00:20.5]} 59. Kg3 {[%clk 0:00:20.2]} 59... Bxe3 {[%clk 0:00:18.1]}
60. Qxf6 {[%clk 0:00:20.2]} 60... Qe1+ {[%clk 0:00:08.2]} 61. Kh2 {[%clk
0:00:20.2]} 61... Bg1+ {[%clk 0:00:08.4]} 62. Kh1 {[%clk 0:00:20.6]} 62... Bf2+
{[%clk 0:00:07.9]} 63. Kh2 {[%clk 0:00:20.9]} 63... Qg1# {[%clk 0:00:08.1]} 0-1

[Event "Late-Titled-Tuesday-Blitz-October-10-2023"]
[Site "Chess.com"]
[Date "2023.10.10"]
[Round "3"]
[White "nitpicker"]
[Black "josiur"]
[Result "1/2-1/2"]
[WhiteElo "2271"]
[BlackElo "2498"]
[TimeControl "180+1"]
[EndTime "14:27:58 PDT"]
[Termination "Game drawn - insufficient material"]

1. d4 {[%clk 0:03:00.9]} 1... d5 {[%clk 0:02:53.9]} 2. c4 {[%clk 0:03:00.9]}
2... e6 {[%clk 0:02:53.9]} 3. Nf3 {[%clk 0:03:00.6]} 3... a6 {[%clk 0:02:54.2]}
4. cxd5 {[%clk 0:02:59.7]} 4... exd5 {[%clk 0:02:55.1]} 5. Nc3 {[%clk
0:02:59.4]} 5... h6 {[%clk 0:02:55.4]} 6. Bf4 {[%clk 0:02:56.9]} 6... Nf6 {[%clk
0:02:56.3]} 7. e3 {[%clk 0:02:52.5]} 7... Bd6 {[%clk 0:02:56.3]} 8. Bg3 {[%clk
0:02:51.7]} 8... Bxg3 {[%clk 0:02:53]} 9. hxg3 {[%clk 0:02:51.1]} 9... O-O
{[%clk 0:02:52.9]} 10. Bd3 {[%clk 0:02:51]} 10... Nc6 {[%clk 0:02:51.1]} 11. a3
{[%clk 0:02:45]} 11... Ne7 {[%clk 0:02:50.7]} 12. Qc2 {[%clk 0:02:42]} 12... Be6
{[%clk 0:02:43.7]} 13. O-O {[%clk 0:02:37.2]} 13... c6 {[%clk 0:02:40]} 14. Ne5
{[%clk 0:02:32.6]} 14... Nc8 {[%clk 0:02:38.2]} 15. f3 {[%clk 0:02:26.3]} 15...
Nd6 {[%clk 0:02:37.1]} 16. g4 {[%clk 0:02:09.8]} 16... Re8 {[%clk 0:02:36.1]}
17. Kf2 {[%clk 0:02:09.5]} 17... Rc8 {[%clk 0:02:32.6]} 18. b4 {[%clk 0:01:56]}
18... b5 {[%clk 0:02:32]} 19. Rh1 {[%clk 0:01:52.1]} 19... Nc4 {[%clk
0:02:32.1]} 20. Ne2 {[%clk 0:01:32.8]} 20... Nd7 {[%clk 0:02:26.4]} 21. Bh7+
{[%clk 0:01:16.6]} 21... Kf8 {[%clk 0:02:24.3]} 22. Nxc4 {[%clk 0:01:17.2]}
22... bxc4 {[%clk 0:02:19.7]} 23. Nf4 {[%clk 0:01:10.9]} 23... Qf6 {[%clk
0:02:03.4]} 24. Bf5 {[%clk 0:00:55.2]} 24... Bxf5 {[%clk 0:01:56.6]} 25. gxf5
{[%clk 0:00:55.1]} 25... Re7 {[%clk 0:01:48]} 26. g4 {[%clk 0:00:54.4]} 26...
Rce8 {[%clk 0:01:46.7]} 27. Rae1 {[%clk 0:00:53.3]} 27... Qd6 {[%clk 0:01:29.7]}
28. Rh5 {[%clk 0:00:45.8]} 28... Rxe3 {[%clk 0:01:24.3]} 29. Rxe3 {[%clk
0:00:43.6]} 29... Qxf4 {[%clk 0:01:24.4]} 30. Qd2 {[%clk 0:00:37.9]} 30... Rxe3
{[%clk 0:00:48.8]} 31. Qxe3 {[%clk 0:00:37.4]} 31... Qxe3+ {[%clk 0:00:40]} 32.
Kxe3 {[%clk 0:00:36.7]} 32... f6 {[%clk 0:00:38.1]} 33. Rh1 {[%clk 0:00:35.5]}
33... Ke7 {[%clk 0:00:37.9]} 34. Rb1 {[%clk 0:00:34.8]} 34... Nb6 {[%clk
0:00:36]} 35. a4 {[%clk 0:00:28.9]} 35... Nxa4 {[%clk 0:00:34.9]} 36. Ra1 {[%clk
0:00:28.6]} 36... Nb2 {[%clk 0:00:29.6]} 37. Rxa6 {[%clk 0:00:27]} 37... Kd6
{[%clk 0:00:30]} 38. Ra7 {[%clk 0:00:25.4]} 38... Nd3 {[%clk 0:00:29.7]} 39.
Rxg7 {[%clk 0:00:24.8]} 39... Nxb4 {[%clk 0:00:29]} 40. Rg6 {[%clk 0:00:25.2]}
40... Ke7 {[%clk 0:00:28.6]} 41. Rxh6 {[%clk 0:00:24.8]} 41... Nc2+ {[%clk
0:00:24]} 42. Kf4 {[%clk 0:00:21.4]} 42... Nxd4 {[%clk 0:00:24.6]} 43. Rh7+
{[%clk 0:00:18.9]} 43... Kd6 {[%clk 0:00:24]} 44. Rf7 {[%clk 0:00:18.6]} 44...
c3 {[%clk 0:00:23.5]} 45. Ke3 {[%clk 0:00:16.2]} 45... Nxf3 {[%clk 0:00:14.9]}
46. Rxf6+ {[%clk 0:00:15.4]} 46... Kc5 {[%clk 0:00:14.5]} 47. Kd3 {[%clk
0:00:12.7]} 47... d4 {[%clk 0:00:12.2]} 48. Re6 {[%clk 0:00:11.5]} 48... Ng5
{[%clk 0:00:10.5]} 49. Re2 {[%clk 0:00:09]} 49... Kd5 {[%clk 0:00:09.8]} 50. Rh2
{[%clk 0:00:08.9]} 50... c5 {[%clk 0:00:10]} 51. Rh5 {[%clk 0:00:08.8]} 51...
c4+ {[%clk 0:00:10.5]} 52. Kc2 {[%clk 0:00:09.1]} 52... Ne4 {[%clk 0:00:10.5]}
53. f6+ {[%clk 0:00:08.3]} 53... Ke6 {[%clk 0:00:11]} 54. Rf5 {[%clk 0:00:07.6]}
54... d3+ {[%clk 0:00:11.5]} 55. Kc1 {[%clk 0:00:05.8]} 55... c2 {[%clk
0:00:11.8]} 56. Re5+ {[%clk 0:00:04.3]} 56... Kxf6 {[%clk 0:00:11.6]} 57. Rxe4
{[%clk 0:00:03.9]} 57... c3 {[%clk 0:00:10]} 58. Rc4 {[%clk 0:00:03.2]} 58...
Ke5 {[%clk 0:00:08.7]} 59. Rxc3 {[%clk 0:00:02.8]} 59... Kd4 {[%clk 0:00:09.6]}
60. Rxc2 {[%clk 0:00:03.1]} 60... dxc2 {[%clk 0:00:09.1]} 61. Kxc2 {[%clk
0:00:03.6]} 61... Ke4 {[%clk 0:00:10]} 62. g5 {[%clk 0:00:04]} 62... Kf5 {[%clk
0:00:10.3]} 63. Kd3 {[%clk 0:00:04.6]} 63... Kxg5 {[%clk 0:00:10.1]} 1/2-1/2

[Event "Late-Titled-Tuesday-Blitz-October-10-2023"]
[Site "Chess.com"]
[Date "2023.10.10"]
[Round "3"]
[White "shimastream"]
[Black "Ali_rastbod"]
[Result "1/2-1/2"]
[WhiteElo "2999"]
[BlackElo "2749"]
[TimeControl "180+1"]
[EndTime "14:28:02 PDT"]
[Termination "Game drawn - insufficient material"]

1. d4 {[%clk 0:03:00.9]} 1... Nf6 {[%clk 0:03:00]} 2. Bg5 {[%clk 0:03:00.9]}
2... d5 {[%clk 0:02:58.8]} 3. Nd2 {[%clk 0:03:00.8]} 3... c5 {[%clk 0:02:57.7]}
4. dxc5 {[%clk 0:03:01.7]} 4... e6 {[%clk 0:02:57.7]} 5. e4 {[%clk 0:03:02]}
5... Bxc5 {[%clk 0:02:58.3]} 6. e5 {[%clk 0:03:02.4]} 6... Qb6 {[%clk
0:02:39.9]} 7. exf6 {[%clk 0:03:02.2]} 7... Bxf2+ {[%clk 0:02:38.5]} 8. Ke2
{[%clk 0:03:02.7]} 8... e5 {[%clk 0:02:35.4]} 9. Nh3 {[%clk 0:03:00]} 9... gxf6
{[%clk 0:02:13.8]} 10. Nxf2 {[%clk 0:02:41.4]} 10... fxg5 {[%clk 0:02:11.8]} 11.
Nb3 {[%clk 0:02:35.7]} 11... O-O {[%clk 0:02:01.3]} 12. Qd2 {[%clk 0:02:33.3]}
12... f6 {[%clk 0:01:51.4]} 13. Qxd5+ {[%clk 0:02:20.5]} 13... Be6 {[%clk
0:01:51.5]} 14. Qc5 {[%clk 0:02:21.1]} 14... Qa6+ {[%clk 0:01:37.2]} 15. Ke1
{[%clk 0:02:19.9]} 15... Qa4 {[%clk 0:01:35.4]} 16. Bb5 {[%clk 0:01:44]} 16...
Qf4 {[%clk 0:01:31.5]} 17. g3 {[%clk 0:01:44.5]} 17... Qf3 {[%clk 0:01:28]} 18.
Nd2 {[%clk 0:01:44.6]} 18... Qh5 {[%clk 0:01:12]} 19. Bc4 {[%clk 0:01:43.8]}
19... Bxc4 {[%clk 0:01:10.4]} 20. Qxc4+ {[%clk 0:01:44.7]} 20... Kh8 {[%clk
0:01:10.8]} 21. Qe2 {[%clk 0:01:42.2]} 21... Qg6 {[%clk 0:01:10.2]} 22. c3
{[%clk 0:01:42]} 22... Na6 {[%clk 0:01:07.8]} 23. Kf1 {[%clk 0:01:40.1]} 23...
Rae8 {[%clk 0:00:48.7]} 24. g4 {[%clk 0:01:37.7]} 24... f5 {[%clk 0:00:45.7]}
25. gxf5 {[%clk 0:01:38.6]} 25... Qxf5 {[%clk 0:00:46.6]} 26. Kg2 {[%clk
0:01:36.9]} 26... Nc5 {[%clk 0:00:44.5]} 27. Nde4 {[%clk 0:01:33]} 27... Ne6
{[%clk 0:00:42.8]} 28. Nd3 {[%clk 0:01:32.9]} 28... Nf4+ {[%clk 0:00:40.3]} 29.
Nxf4 {[%clk 0:01:32]} 29... exf4 {[%clk 0:00:41.2]} 30. Rhf1 {[%clk 0:01:03.3]}
30... Rxe4 {[%clk 0:00:38.4]} 31. Qd3 {[%clk 0:01:03.4]} 31... g4 {[%clk
0:00:25]} 32. Rad1 {[%clk 0:00:54.6]} 32... f3+ {[%clk 0:00:24.9]} 33. Kg1
{[%clk 0:00:54.8]} 33... Re2 {[%clk 0:00:21.8]} 34. Qd4+ {[%clk 0:00:53.8]}
34... Qf6 {[%clk 0:00:21.7]} 35. Rf2 {[%clk 0:00:52.6]} 35... Qxd4 {[%clk
0:00:17]} 36. Rxd4 {[%clk 0:00:53.5]} 36... h5 {[%clk 0:00:04]} 37. Rd5 {[%clk
0:00:53.3]} 37... Re1+ {[%clk 0:00:03.7]} 38. Rf1 {[%clk 0:00:53.3]} 38... Rxf1+
{[%clk 0:00:04.3]} 39. Kxf1 {[%clk 0:00:53.3]} 39... Kg7 {[%clk 0:00:04.4]} 40.
Rxh5 {[%clk 0:00:53.4]} 40... Kg6 {[%clk 0:00:05.1]} 41. Rd5 {[%clk 0:00:50.6]}
41... Rh8 {[%clk 0:00:05.4]} 42. Rd2 {[%clk 0:00:50.7]} 42... Kg5 {[%clk
0:00:05]} 43. Kg1 {[%clk 0:00:39.8]} 43... Kf4 {[%clk 0:00:05.3]} 44. Rd4+
{[%clk 0:00:40.6]} 44... Ke3 {[%clk 0:00:05.4]} 45. Rxg4 {[%clk 0:00:40.9]}
45... f2+ {[%clk 0:00:05.2]} 46. Kf1 {[%clk 0:00:38.9]} 46... Rxh2 {[%clk
0:00:04.6]} 47. Rg3+ {[%clk 0:00:39.4]} 47... Kd2 {[%clk 0:00:04.6]} 48. c4
{[%clk 0:00:39.2]} 48... Kc2 {[%clk 0:00:03.8]} 49. Rb3 {[%clk 0:00:39.4]} 49...
b6 {[%clk 0:00:04.2]} 50. Rb5 {[%clk 0:00:39.6]} 50... Rh1+ {[%clk 0:00:02.8]}
51. Kxf2 {[%clk 0:00:39.3]} 51... Ra1 {[%clk 0:00:03.6]} 52. a3 {[%clk
0:00:26.9]} 52... Rb1 {[%clk 0:00:03.4]} 53. c5 {[%clk 0:00:18.2]} 53... bxc5
{[%clk 0:00:04.3]} 54. Rxc5+ {[%clk 0:00:17.3]} 54... Kxb2 {[%clk 0:00:04.6]}
55. Ra5 {[%clk 0:00:13.9]} 55... Ra1 {[%clk 0:00:03.7]} 56. Rxa7 {[%clk
0:00:08.3]} 56... Rxa3 {[%clk 0:00:04]} 57. Rxa3 {[%clk 0:00:09.2]} 57... Kxa3
{[%clk 0:00:04.6]} 1/2-1/2